[Event "BLR-ch 1st Stage Women 2020"]
[Site "Minsk"]
[Date "2020.02.01"]
[Round "1.1"]
[White "Poliakova, Varvara"]
[Black "Liashkevich, Lizaveta"]
[Result "1-0"]
[ECO "B84"]
[WhiteElo "2052"]
[BlackElo "1488"]
[Annotator "NA"]
[PlyCount "93"]
[EventDate "2020.02.01"]
[EventType "swiss"]
[EventCountry "BLR"]
[SourceTitle "playchess.com"]
[Source "ChessBase"]
[SourceQuality "1"]
[TimeControl "40/5400+30:1800+30"]

1. e4 {[%emt 0:00:00]} c5 {[%emt 0:00:00]} 2. Nf3 {[%emt 0:00:00]} e6 {[%emt 0:00:00]} 3. d4 {[%emt 0:00:00]} cxd4 {[%emt 0:00:08]} 4. Nxd4 {[%emt 0:00:00]} Nf6 {[%emt 0:00:23]} 5. Nc3 {[%emt 0:00:09]} d6 {[%emt 0:00:23]} 6. Be3 {[%emt 0:01:57]} a6 {[%emt 0:01:18]} 7. Be2 {[%emt 0:05:01]} Be7 {[%emt 0:02:27]} 8. g4 {[%emt 0:02:21]} h6 {[%emt 0:05:10]} 9. h4 {[%emt 0:01:09]} Nc6 {[%emt 0:03:53]} 10. Qd2 {[%emt 0:01:57]} d5 {[%emt 0:19:27]} 11. exd5 {[%emt 0:06:01]} Nxd5 {[%emt 0:00:53]} 12. Nxd5 {[%emt 0:00:46]} Qxd5 {[%emt 0:01:34]} 13. Bf3 {[%emt 0:00:38]} Qd7 {[%emt 0:03:28]} 14. Nxc6 {[%emt 0:00:07]} bxc6 {[%emt 0:00:37]} 15. O-O-O {[%emt 0:02:12]} Qxd2+ {[%emt 0:04:51]} 16. Bxd2 {[%emt 0:03:38]} Bb7 {[%emt 0:05:15]} 17. Bc3 {[%emt 0:00:20]} Bf6 {[%emt 0:07:12]} 18. Bxf6 {[%emt 0:00:26]} gxf6 {[%emt 0:00:11]} 19. Rd3 {[%emt 0:00:15]} Ke7 {[%emt 0:01:05]} 20. Rb3 {[%emt 0:00:33]} Rab8 {[%emt 0:02:00]} 21. Rd1 {[%emt 0:00:20]} Ba8 {[%emt 0:03:00]} 22. Rdd3 {[%emt 0:01:37]} Rhc8 {[%emt 0:09:34]} 23. Kd2 {[%emt 0:01:07]} Rb5 {[%emt 0:02:37]} 24. c4 {[%emt 0:01:55]} Rbb8 {[%emt 0:04:38]} 25. Ke3 {[%emt 0:00:39]} a5 {[%emt 0:02:23]} 26. Ra3 {[%emt 0:02:08]} Rxb2 {[%emt 0:06:48]} 27. Rxa5 {[%emt 0:00:05]} Bb7 {[%emt 0:01:44]} 28. Ra7 {[%emt 0:01:06]} Rc7 {[%emt 0:02:18]} 29. Bd1 {[%emt 0:00:57]} Rb4 {[%emt 0:02:03]} 30. Bb3 {[%emt 0:01:29]} c5 {[%emt 0:01:13]} 31. Bd1 {[%emt 0:04:41]} Rd7 {[%emt 0:04:32]} 32. Bf3 {[%emt 0:00:34]} Bc8 {[%emt 0:01:19]} 33. Rdxd7+ {[%emt 0:00:10]} Bxd7 {[%emt 0:00:30]} 34. Bc6 {[%emt 0:00:06]} Rxc4 {[%emt 0:00:41]} 35. Rxd7+ {[%emt 0:00:22]} Kf8 {[%emt 0:00:12]} 36. a4 {[%emt 0:00:23]} Rxg4 {[%emt 0:00:15]} 37. a5 {[%emt 0:00:11]} Rb4 {[%emt 0:00:42]} 38. a6 {[%emt 0:00:15]} Rb3+ {[%emt 0:00:40]} 39. Rd3 {[%emt 0:00:16]} c4 {[%emt 0:00:51]} 40. Rxb3 {[%emt 0:00:00]} cxb3 {[%emt 0:00:00]} 41. a7 {[%emt 0:00:10]} b2 {[%emt 0:00:43]} 42. a8=Q+ {[%emt 0:00:05]} Kg7 {[%emt 0:00:10]} 43. Be4 {[%emt 0:00:12]} f5 {[%emt 0:00:15]} 44. Bb1 {[%emt 0:00:05]} h5 {[%emt 0:00:58]} 45. Kf4 {[%emt 0:00:06]} f6 {[%emt 0:00:35]} 46. Qe8 {[%emt 0:00:05]} Kh6 {[%emt 0:00:50]} 47. Qxe6 {[%emt 0:00:15]} 1-0

[Event "BLR-ch 1st Stage Women 2020"]
[Site "Minsk"]
[Date "2020.02.01"]
[Round "1.2"]
[White "Ajusheva, Renata"]
[Black "Zeliantsova, Kseniya"]
[Result "0-1"]
[ECO "A48"]
[WhiteElo "1412"]
[BlackElo "1993"]
[Annotator "NA"]
[PlyCount "94"]
[EventDate "2020.02.01"]
[EventType "swiss"]
[EventCountry "BLR"]
[SourceTitle "playchess.com"]
[Source "ChessBase"]
[SourceQuality "1"]
[TimeControl "40/5400+30:1800+30"]

1. d4 {[%emt 0:00:00]} Nf6 {[%emt 0:00:00]} 2. Bf4 {[%emt 0:00:00]} g6 {[%emt 0:00:00]} 3. Nf3 {[%emt 0:00:47]} Bg7 {[%emt 0:00:12]} 4. e3 {[%emt 0:01:21]} d6 {[%emt 0:00:50]} 5. Bc4 {[%emt 0:02:16]} O-O {[%emt 0:00:49]} 6. O-O {[%emt 0:00:23]} Nbd7 {[%emt 0:00:51]} 7. Re1 {[%emt 0:04:56]} Qe8 {[%emt 0:03:42]} 8. e4 {[%emt 0:06:39]} e5 {[%emt 0:01:45]} 9. dxe5 {[%emt 0:00:18]} Nh5 {[%emt 0:07:46]} 10. Be3 {[%emt 0:01:19]} Nxe5 {[%emt 0:01:18]} 11. Nxe5 {[%emt 0:00:14]} Qxe5 {[%emt 0:00:18]} 12. Nc3 {[%emt 0:00:50]} Bd7 {[%emt 0:07:41]} 13. Rb1 {[%emt 0:03:44]} b5 {[%emt 0:12:47]} 14. Be2 {[%emt 0:04:47]} Nf4 {[%emt 0:21:21]} 15. Bxf4 {[%emt 0:01:33]} Qxf4 {[%emt 0:00:03]} 16. Nd5 {[%emt 0:06:24]} Qg5 {[%emt 0:01:47]} 17. Nxc7 {[%emt 0:01:37]} Rac8 {[%emt 0:01:55]} 18. Nd5 {[%emt 0:01:36]} Rfe8 {[%emt 0:01:29]} 19. f4 {[%emt 0:03:48]} Qd8 {[%emt 0:01:56]} 20. Bf3 {[%emt 0:00:48]} Be6 {[%emt 0:00:52]} 21. c3 {[%emt 0:02:22]} Bxd5 {[%emt 0:04:05]} 22. exd5 {[%emt 0:02:27]} b4 {[%emt 0:03:42]} 23. Rxe8+ {[%emt 0:20:50]} Qxe8 {[%emt 0:00:04]} 24. Qe2 {[%emt 0:06:29]} Qd7 {[%emt 0:04:20]} 25. cxb4 {[%emt 0:09:39]} Re8 {[%emt 0:09:38]} 26. Qd2 {[%emt 0:00:35]} Qf5 {[%emt 0:00:31]} 27. Rd1 {[%emt 0:03:34]} h5 {[%emt 0:01:44]} 28. b3 {[%emt 0:01:34]} Rc8 {[%emt 0:05:45]} 29. Rc1 {[%emt 0:00:37]} Rxc1+ {[%emt 0:00:39]} 30. Qxc1 {[%emt 0:00:05]} Qd3 {[%emt 0:00:06]} 31. Kh1 {[%emt 0:04:45]} Bd4 {[%emt 0:01:14]} 32. Qd1 {[%emt 0:00:33]} Qe3 {[%emt 0:00:12]} 33. g3 {[%emt 0:00:34]} Qf2 {[%emt 0:00:36]} 34. Bg2 {[%emt 0:00:37]} Be3 {[%emt 0:04:57]} 35. a4 {[%emt 0:01:23]} h4 {[%emt 0:00:10]} 36. Qf1 {[%emt 0:06:11]} Qd2 {[%emt 0:01:20]} 37. b5 {[%emt 0:00:40]} hxg3 {[%emt 0:00:35]} 38. hxg3 {[%emt 0:00:07]} Bf2 {[%emt 0:00:06]} 39. g4 {[%emt 0:01:37]} Qxf4 {[%emt 0:00:35]} 40. Bh3 {[%emt 0:00:00]} Qe3 {[%emt 0:00:00]} 41. Bg2 {[%emt 0:01:40]} Qg3 {[%emt 0:02:01]} 42. b4 {[%emt 0:01:11]} Bd4 {[%emt 0:00:25]} 43. Bh3 {[%emt 0:01:35]} Be5 {[%emt 0:01:06]} 44. Qg2 {[%emt 0:00:30]} Qe1+ {[%emt 0:00:25]} 45. Qg1 {[%emt 0:01:59]} Qxb4 {[%emt 0:00:25]} 46. Qxa7 {[%emt 0:02:58]} Qe4+ {[%emt 0:00:08]} 47. Bg2 {[%emt 0:00:17]} Qe1+ {[%emt 0:00:03]} 0-1

[Event "BLR-ch 1st Stage Women 2020"]
[Site "Minsk"]
[Date "2020.02.01"]
[Round "1.3"]
[White "Beinenson, Katsiaryna"]
[Black "Aleshko, Margarita"]
[Result "1-0"]
[ECO "C17"]
[WhiteElo "1985"]
[BlackElo "1405"]
[Annotator "NA"]
[PlyCount "69"]
[EventDate "2020.02.01"]
[EventType "swiss"]
[EventCountry "BLR"]
[SourceTitle "playchess.com"]
[Source "ChessBase"]
[SourceQuality "1"]
[TimeControl "40/5400+30:1800+30"]

1. e4 {[%emt 0:00:00]} e6 {[%emt 0:00:00]} 2. d4 {[%emt 0:00:00]} d5 {[%emt 0:00:00]} 3. Nc3 {[%emt 0:00:05]} Bb4 {[%emt 0:00:00]} 4. e5 {[%emt 0:00:17]} Ne7 {[%emt 0:00:01]} 5. Qg4 {[%emt 0:05:17]} c5 {[%emt 0:01:42]} 6. Bd2 {[%emt 0:12:35]} cxd4 {[%emt 0:16:01]} 7. Qxd4 {[%emt 0:01:05]} Nbc6 {[%emt 0:01:01]} 8. Bb5 {[%emt 0:04:40]} Bd7 {[%emt 0:01:11]} 9. Bxc6 {[%emt 0:01:40]} Nxc6 {[%emt 0:00:16]} 10. Qg4 {[%emt 0:02:06]} Qc7 {[%emt 0:10:39]} 11. Nf3 {[%emt 0:04:47]} Bxc3 {[%emt 0:05:58]} 12. Bxc3 {[%emt 0:00:27]} O-O {[%emt 0:02:42]} 13. O-O {[%emt 0:01:44]} Ne7 {[%emt 0:02:32]} 14. Rad1 {[%emt 0:06:30]} Ng6 {[%emt 0:03:05]} 15. Rfe1 {[%emt 0:01:06]} a5 {[%emt 0:08:16]} 16. Re3 {[%emt 0:02:54]} Ra6 {[%emt 0:03:20]} 17. Ng5 {[%emt 0:10:48]} h6 {[%emt 0:01:04]} 18. Nxf7 {[%emt 0:02:01]} Rxf7 {[%emt 0:04:07]} 19. Qxg6 {[%emt 0:00:07]} Be8 {[%emt 0:02:17]} 20. Rg3 {[%emt 0:02:54]} Kh8 {[%emt 0:00:31]} 21. Bd4 {[%emt 0:06:34]} b5 {[%emt 0:04:08]} 22. c3 {[%emt 0:05:13]} b4 {[%emt 0:02:03]} 23. Rdd3 {[%emt 0:02:09]} Qe7 {[%emt 0:04:33]} 24. Rh3 {[%emt 0:05:11]} Rf5 {[%emt 0:03:00]} 25. Qg4 {[%emt 0:00:35]} bxc3 {[%emt 0:02:12]} 26. Bxc3 {[%emt 0:00:51]} a4 {[%emt 0:02:57]} 27. Rdg3 {[%emt 0:07:11]} Qf7 {[%emt 0:00:44]} 28. Qe2 {[%emt 0:04:09]} Rc6 {[%emt 0:00:56]} 29. Bd2 {[%emt 0:00:48]} Qf8 {[%emt 0:01:31]} 30. Be3 {[%emt 0:04:23]} Rc4 {[%emt 0:01:48]} 31. Qd2 {[%emt 0:03:04]} Rf7 {[%emt 0:02:14]} 32. Bxh6 {[%emt 0:02:57]} gxh6 {[%emt 0:00:23]} 33. Rxh6+ {[%emt 0:00:04]} Rh7 {[%emt 0:00:52]} 34. Rxh7+ {[%emt 0:00:07]} Kxh7 {[%emt 0:00:18]} 35. Qg5 {[%emt 0:00:10]} 1-0

[Event "BLR-ch 1st Stage Women 2020"]
[Site "Minsk"]
[Date "2020.02.01"]
[Round "2.1"]
[White "Sukalina, Alina"]
[Black "Poliakova, Varvara"]
[Result "1-0"]
[ECO "D13"]
[WhiteElo "1622"]
[BlackElo "2052"]
[Annotator "NA"]
[PlyCount "37"]
[EventDate "2020.02.01"]
[EventType "swiss"]
[EventCountry "BLR"]
[SourceTitle "playchess.com"]
[Source "ChessBase"]
[SourceQuality "1"]
[TimeControl "40/5400+30:1800+30"]

1. d4 {[%emt 0:00:00]} d5 {[%emt 0:00:00]} 2. c4 {[%emt 0:00:31]} c6 {[%emt 0:00:00]} 3. cxd5 {[%emt 0:01:27]} cxd5 {[%emt 0:00:04]} 4. Nf3 {[%emt 0:01:02]} Nf6 {[%emt 0:00:37]} 5. Nc3 {[%emt 0:00:30]} Nc6 {[%emt 0:01:14]} 6. e3 {[%emt 0:01:55]} Ne4 {[%emt 0:03:01]} 7. Qb3 {[%emt 0:09:02]} Nxc3 {[%emt 0:01:17]} 8. bxc3 {[%emt 0:03:25]} g6 {[%emt 0:00:49]} 9. c4 {[%emt 0:03:19]} dxc4 {[%emt 0:03:19]} 10. Bxc4 {[%emt 0:01:11]} e6 {[%emt 0:00:05]} 11. O-O {[%emt 0:07:21]} Bg7 {[%emt 0:01:13]} 12. Ba3 {[%emt 0:03:56]} Ne7 {[%emt 0:01:49]} 13. Bb5+ {[%emt 0:08:07]} Bd7 {[%emt 0:03:11]} 14. Rac1 {[%emt 0:04:51]} Bxb5 {[%emt 0:06:55]} 15. Qxb5+ {[%emt 0:01:40]} Qd7 {[%emt 0:00:51]} 16. Qxd7+ {[%emt 0:02:53]} Kxd7 {[%emt 0:01:27]} 17. Bxe7 {[%emt 0:00:30]} Kxe7 {[%emt 0:00:01]} 18. Rc7+ {[%emt 0:00:07]} Kf6 {[%emt 0:05:24]} 19. Ne5 {[%emt 0:04:07]} 1-0

[Event "BLR-ch 1st Stage Women 2020"]
[Site "Minsk"]
[Date "2020.02.01"]
[Round "2.2"]
[White "Zeliantsova, Kseniya"]
[Black "Dubovik, Maria"]
[Result "1-0"]
[ECO "B52"]
[WhiteElo "1993"]
[BlackElo "1558"]
[Annotator "NA"]
[PlyCount "99"]
[EventDate "2020.02.01"]
[EventType "swiss"]
[EventCountry "BLR"]
[SourceTitle "playchess.com"]
[Source "ChessBase"]
[SourceQuality "1"]
[TimeControl "40/5400+30:1800+30"]

1. e4 {[%emt 0:00:00]} c5 {[%emt 0:01:30]} 2. Nf3 {[%emt 0:00:00]} d6 {[%emt 0:00:38]} 3. Bb5+ {[%emt 0:00:12]} Bd7 {[%emt 0:00:11]} 4. Bxd7+ {[%emt 0:00:33]} Nxd7 {[%emt 0:01:29]} 5. c4 {[%emt 0:01:38]} g6 {[%emt 0:02:04]} 6. Nc3 {[%emt 0:01:42]} Bg7 {[%emt 0:01:36]} 7. d4 {[%emt 0:00:34]} cxd4 {[%emt 0:01:58]} 8. Nxd4 {[%emt 0:00:07]} Rc8 {[%emt 0:02:40]} 9. b3 {[%emt 0:03:45]} Ngf6 {[%emt 0:02:08]} 10. Bb2 {[%emt 0:02:25]} O-O {[%emt 0:02:20]} 11. O-O {[%emt 0:00:48]} Nc5 {[%emt 0:01:34]} 12. Re1 {[%emt 0:05:53]} a6 {[%emt 0:03:01]} 13. Qd2 {[%emt 0:02:59]} Ng4 {[%emt 0:04:42]} 14. Rad1 {[%emt 0:05:50]} Ne5 {[%emt 0:01:56]} 15. Qe2 {[%emt 0:02:41]} Qd7 {[%emt 0:14:02]} 16. Nd5 {[%emt 0:07:18]} Qd8 {[%emt 0:02:20]} 17. f4 {[%emt 0:04:07]} Ned7 {[%emt 0:01:42]} 18. e5 {[%emt 0:23:52]} dxe5 {[%emt 0:01:57]} 19. fxe5 {[%emt 0:00:06]} Bxe5 {[%emt 0:01:19]} 20. Nf5 {[%emt 0:01:04]} gxf5 {[%emt 0:04:59]} 21. Bxe5 {[%emt 0:00:07]} f6 {[%emt 0:01:37]} 22. Bb2 {[%emt 0:04:25]} Ne4 {[%emt 0:04:04]} 23. Ba3 {[%emt 0:05:18]} Re8 {[%emt 0:02:41]} 24. Qd3 {[%emt 0:02:36]} Ne5 {[%emt 0:03:06]} 25. Qh3 {[%emt 0:06:34]} Nd6 {[%emt 0:08:26]} 26. c5 {[%emt 0:03:19]} Nb5 {[%emt 0:05:24]} 27. Nxf6+ {[%emt 0:04:20]} exf6 {[%emt 0:00:14]} 28. Rxd8 {[%emt 0:00:05]} Rcxd8 {[%emt 0:00:06]} 29. Bb4 {[%emt 0:00:09]} Nd4 {[%emt 0:00:20]} 30. Rf1 {[%emt 0:03:49]} Ng4 {[%emt 0:00:43]} 31. Qh4 {[%emt 0:02:39]} Ne2+ {[%emt 0:04:33]} 32. Kh1 {[%emt 0:00:05]} Rd4 {[%emt 0:00:15]} 33. a3 {[%emt 0:05:01]} Ne3 {[%emt 0:00:30]} 34. Qh5 {[%emt 0:00:02]} Ree4 {[%emt 0:00:41]} 35. Qxe2 {[%emt 0:01:20]} Nxf1 {[%emt 0:00:05]} 36. Qxf1 {[%emt 0:00:02]} Rf4 {[%emt 0:00:05]} 37. Qe1 {[%emt 0:00:05]} Rde4 {[%emt 0:00:05]} 38. Qg3+ {[%emt 0:00:15]} Kf7 {[%emt 0:00:05]} 39. h3 {[%emt 0:00:16]} Rd4 {[%emt 0:00:14]} 40. c6 {[%emt 0:00:00]} bxc6 {[%emt 0:00:00]} 41. Qc3 {[%emt 0:01:47]} Rfe4 {[%emt 0:03:06]} 42. Qxc6 {[%emt 0:00:50]} f4 {[%emt 0:00:43]} 43. Bc3 {[%emt 0:00:54]} Rd1+ {[%emt 0:00:51]} 44. Kh2 {[%emt 0:00:03]} Re6 {[%emt 0:00:11]} 45. Qc7+ {[%emt 0:00:08]} Kg6 {[%emt 0:00:11]} 46. Qxf4 {[%emt 0:00:05]} Red6 {[%emt 0:00:18]} 47. Bxf6 {[%emt 0:00:47]} R1d5 {[%emt 0:00:23]} 48. Be5 {[%emt 0:00:24]} Rd8 {[%emt 0:00:14]} 49. Qf6+ {[%emt 0:00:09]} Kh5 {[%emt 0:00:06]} 50. g4# {[%emt 0:00:04]} 1-0

[Event "BLR-ch 1st Stage Women 2020"]
[Site "Minsk"]
[Date "2020.02.01"]
[Round "2.3"]
[White "Bondar, Anastasiya"]
[Black "Beinenson, Katsiaryna"]
[Result "0-1"]
[ECO "B30"]
[WhiteElo "1254"]
[BlackElo "1985"]
[Annotator "NA"]
[PlyCount "72"]
[EventDate "2020.02.01"]
[EventType "swiss"]
[EventCountry "BLR"]
[SourceTitle "playchess.com"]
[Source "ChessBase"]
[SourceQuality "1"]
[TimeControl "40/5400+30:1800+30"]

1. e4 {[%emt 0:00:00]} c5 {[%emt 0:00:00]} 2. Nf3 {[%emt 0:00:00]} Nc6 {[%emt 0:00:00]} 3. Bb5 {[%emt 0:00:00]} Nf6 {[%emt 0:00:01]} 4. Bxc6 {[%emt 0:00:11]} dxc6 {[%emt 0:00:24]} 5. d3 {[%emt 0:00:14]} Bg4 {[%emt 0:01:17]} 6. h3 {[%emt 0:01:03]} Bh5 {[%emt 0:00:25]} 7. Bg5 {[%emt 0:01:13]} Nd7 {[%emt 0:07:00]} 8. Nbd2 {[%emt 0:05:00]} f6 {[%emt 0:02:22]} 9. Be3 {[%emt 0:02:31]} e5 {[%emt 0:00:54]} 10. Qe2 {[%emt 0:03:42]} Be7 {[%emt 0:02:31]} 11. g4 {[%emt 0:04:36]} Bf7 {[%emt 0:01:42]} 12. h4 {[%emt 0:03:33]} Nf8 {[%emt 0:04:55]} 13. a3 {[%emt 0:10:04]} Ne6 {[%emt 0:02:32]} 14. c3 {[%emt 0:04:32]} Qc7 {[%emt 0:05:11]} 15. O-O-O {[%emt 0:01:43]} O-O-O {[%emt 0:04:29]} 16. h5 {[%emt 0:04:03]} Rd7 {[%emt 0:04:53]} 17. Kc2 {[%emt 0:02:26]} Rhd8 {[%emt 0:00:40]} 18. Nb3 {[%emt 0:00:37]} Qb6 {[%emt 0:00:44]} 19. Nc1 {[%emt 0:03:28]} a5 {[%emt 0:04:53]} 20. a4 {[%emt 0:03:13]} Qa6 {[%emt 0:03:43]} 21. g5 {[%emt 0:05:02]} b5 {[%emt 0:02:28]} 22. b3 {[%emt 0:07:56]} bxa4 {[%emt 0:03:17]} 23. bxa4 {[%emt 0:00:30]} Rb7 {[%emt 0:00:42]} 24. Rd2 {[%emt 0:01:12]} Qb6 {[%emt 0:00:26]} 25. Kd1 {[%emt 0:00:18]} Qb1 {[%emt 0:01:29]} 26. c4 {[%emt 0:05:52]} Nd4 {[%emt 0:05:38]} 27. Bxd4 {[%emt 0:00:07]} cxd4 {[%emt 0:00:04]} 28. Rc2 {[%emt 0:01:31]} fxg5 {[%emt 0:09:11]} 29. Nxe5 {[%emt 0:00:31]} Be8 {[%emt 0:00:35]} 30. Qg4+ {[%emt 0:02:11]} Kb8 {[%emt 0:00:06]} 31. Qe6 {[%emt 0:00:50]} Ba3 {[%emt 0:01:59]} 32. Nxc6+ {[%emt 0:00:37]} Bxc6 {[%emt 0:00:12]} 33. Qxc6 {[%emt 0:00:07]} Bxc1 {[%emt 0:00:13]} 34. Rxc1 {[%emt 0:00:20]} Qxd3+ {[%emt 0:00:06]} 35. Ke1 {[%emt 0:00:15]} Rb2 {[%emt 0:00:33]} 36. Rc2 {[%emt 0:01:27]} Rb1+ {[%emt 0:00:13]} 0-1

[Event "BLR-ch 1st Stage Women 2020"]
[Site "Minsk"]
[Date "2020.02.01"]
[Round "3.1"]
[White "Kolosovskaya, Olga"]
[Black "Zeliantsova, Kseniya"]
[Result "0-1"]
[ECO "A15"]
[WhiteElo "1719"]
[BlackElo "1993"]
[Annotator "NA"]
[PlyCount "132"]
[EventDate "2020.02.01"]
[EventType "swiss"]
[EventCountry "BLR"]
[SourceTitle "playchess.com"]
[Source "ChessBase"]
[SourceQuality "1"]
[TimeControl "40/5400+30:1800+30"]

1. b3 {[%emt 0:00:00]} e5 {[%emt 0:02:13]} 2. Bb2 {[%emt 0:00:00]} Nc6 {[%emt 0:00:13]} 3. c4 {[%emt 0:09:14]} g6 {[%emt 0:02:28]} 4. Nc3 {[%emt 0:01:31]} Bg7 {[%emt 0:00:13]} 5. g3 {[%emt 0:00:09]} Nf6 {[%emt 0:01:42]} 6. Bg2 {[%emt 0:01:51]} O-O {[%emt 0:00:53]} 7. Nf3 {[%emt 0:07:01]} d6 {[%emt 0:03:37]} 8. O-O {[%emt 0:00:28]} Nh5 {[%emt 0:05:29]} 9. d3 {[%emt 0:24:18]} f5 {[%emt 0:04:22]} 10. Qd2 {[%emt 0:02:41]} h6 {[%emt 0:05:00]} 11. Nd5 {[%emt 0:08:22]} Be6 {[%emt 0:04:34]} 12. Nh4 {[%emt 0:17:38]} Kh7 {[%emt 0:02:13]} 13. Nf3 {[%emt 0:04:25]} Ne7 {[%emt 0:10:20]} 14. Nxe7 {[%emt 0:01:12]} Qxe7 {[%emt 0:00:05]} 15. e3 {[%emt 0:02:15]} c6 {[%emt 0:05:45]} 16. Qc2 {[%emt 0:01:25]} Kh8 {[%emt 0:13:41]} 17. c5 {[%emt 0:01:27]} Rae8 {[%emt 0:02:15]} 18. cxd6 {[%emt 0:00:33]} Qxd6 {[%emt 0:00:05]} 19. d4 {[%emt 0:02:10]} e4 {[%emt 0:01:53]} 20. Ne5 {[%emt 0:00:05]} Kh7 {[%emt 0:01:11]} 21. Nc4 {[%emt 0:01:37]} Qc7 {[%emt 0:04:17]} 22. Ba3 {[%emt 0:00:11]} Rg8 {[%emt 0:00:38]} 23. Rac1 {[%emt 0:02:01]} Bd5 {[%emt 0:02:05]} 24. Bb2 {[%emt 0:01:56]} Bf6 {[%emt 0:01:47]} 25. Rfd1 {[%emt 0:00:30]} Ng7 {[%emt 0:00:14]} 26. Bf1 {[%emt 0:01:04]} Ne6 {[%emt 0:03:27]} 27. Nd2 {[%emt 0:02:25]} Rd8 {[%emt 0:02:43]} 28. Nc4 {[%emt 0:01:20]} Ng5 {[%emt 0:01:36]} 29. Bg2 {[%emt 0:00:13]} Qd7 {[%emt 0:03:29]} 30. Ne5 {[%emt 0:01:22]} Qe6 {[%emt 0:00:09]} 31. Nc4 {[%emt 0:03:29]} Rge8 {[%emt 0:02:40]} 32. Nd2 {[%emt 0:00:07]} f4 {[%emt 0:05:01]} 33. gxf4 {[%emt 0:01:03]} Nf3+ {[%emt 0:01:35]} 34. Bxf3 {[%emt 0:00:04]} exf3 {[%emt 0:00:03]} 35. Kh1 {[%emt 0:00:08]} Bh4 {[%emt 0:00:59]} 36. Rf1 {[%emt 0:02:49]} Rd6 {[%emt 0:01:47]} 37. Nc4 {[%emt 0:00:03]} Be4 {[%emt 0:02:04]} 38. Qxe4 {[%emt 0:00:42]} Qxe4 {[%emt 0:00:07]} 39. Nxd6 {[%emt 0:00:02]} Qe6 {[%emt 0:00:33]} 40. Nxe8 {[%emt 0:00:00]} Qh3 {[%emt 0:00:00]} 41. Rg1 {[%emt 0:00:22]} Bxf2 {[%emt 0:04:33]} 42. d5 {[%emt 0:16:08]} Bxg1 {[%emt 0:05:41]} 43. Rxg1 {[%emt 0:00:09]} cxd5 {[%emt 0:04:32]} 44. Nf6+ {[%emt 0:00:16]} Kg7 {[%emt 0:00:05]} 45. Ng4+ {[%emt 0:02:37]} Kf7 {[%emt 0:00:39]} 46. Nf2 {[%emt 0:01:36]} Qf5 {[%emt 0:00:19]} 47. Rc1 {[%emt 0:06:55]} g5 {[%emt 0:01:53]} 48. Be5 {[%emt 0:04:36]} gxf4 {[%emt 0:02:05]} 49. exf4 {[%emt 0:02:13]} Ke6 {[%emt 0:03:43]} 50. h3 {[%emt 0:00:01]} Qg6 {[%emt 0:02:10]} 51. Rg1 {[%emt 0:00:03]} Qc2 {[%emt 0:00:08]} 52. Bd4 {[%emt 0:01:17]} b6 {[%emt 0:01:56]} 53. Re1+ {[%emt 0:00:31]} Kd7 {[%emt 0:02:06]} 54. Kh2 {[%emt 0:00:16]} Qd2 {[%emt 0:00:07]} 55. Rd1 {[%emt 0:00:24]} Qxf4+ {[%emt 0:00:04]} 56. Kh1 {[%emt 0:00:14]} h5 {[%emt 0:00:55]} 57. a4 {[%emt 0:00:30]} Qg5 {[%emt 0:00:25]} 58. Rg1 {[%emt 0:00:05]} Qd2 {[%emt 0:00:05]} 59. Rd1 {[%emt 0:00:21]} Qc2 {[%emt 0:00:09]} 60. a5 {[%emt 0:00:21]} Qxb3 {[%emt 0:01:24]} 61. axb6 {[%emt 0:00:07]} axb6 {[%emt 0:00:02]} 62. Rd3 {[%emt 0:01:45]} Qb4 {[%emt 0:01:16]} 63. Bc3 {[%emt 0:01:54]} Qf4 {[%emt 0:01:33]} 64. Kg1 {[%emt 0:00:32]} Qg3+ {[%emt 0:00:13]} 65. Kf1 {[%emt 0:00:05]} Qg2+ {[%emt 0:00:03]} 66. Ke1 {[%emt 0:00:03]} Qg1+ {[%emt 0:00:03]} 0-1

[Event "BLR-ch 1st Stage Women 2020"]
[Site "Minsk"]
[Date "2020.02.01"]
[Round "3.2"]
[White "Beinenson, Katsiaryna"]
[Black "Norman, Kseniya"]
[Result "1-0"]
[ECO "B01"]
[WhiteElo "1985"]
[BlackElo "1730"]
[Annotator "NA"]
[PlyCount "63"]
[EventDate "2020.02.01"]
[EventType "swiss"]
[EventCountry "BLR"]
[SourceTitle "playchess.com"]
[Source "ChessBase"]
[SourceQuality "1"]
[TimeControl "40/5400+30:1800+30"]

1. e4 {[%emt 0:09:25]} d5 {[%emt 0:00:00]} 2. exd5 {[%emt 0:00:57]} Nf6 {[%emt 0:00:00]} 3. d4 {[%emt 0:05:10]} Bg4 {[%emt 0:00:22]} 4. Be2 {[%emt 0:07:19]} Bxe2 {[%emt 0:01:28]} 5. Nxe2 {[%emt 0:00:09]} Qxd5 {[%emt 0:00:56]} 6. O-O {[%emt 0:01:23]} Nc6 {[%emt 0:02:24]} 7. b3 {[%emt 0:01:34]} O-O-O {[%emt 0:02:45]} 8. Bb2 {[%emt 0:06:51]} Qh5 {[%emt 0:03:19]} 9. c4 {[%emt 0:05:20]} e6 {[%emt 0:04:13]} 10. Nd2 {[%emt 0:05:23]} Bd6 {[%emt 0:02:47]} 11. h3 {[%emt 0:03:24]} Rhg8 {[%emt 0:09:05]} 12. c5 {[%emt 0:24:26]} Be7 {[%emt 0:01:27]} 13. Qe1 {[%emt 0:08:05]} g5 {[%emt 0:02:19]} 14. Ng3 {[%emt 0:02:56]} Qh6 {[%emt 0:06:38]} 15. Nf3 {[%emt 0:01:34]} g4 {[%emt 0:01:28]} 16. hxg4 {[%emt 0:00:07]} Nxg4 {[%emt 0:00:46]} 17. Rd1 {[%emt 0:02:49]} Rg6 {[%emt 0:14:46]} 18. b4 {[%emt 0:01:45]} Bh4 {[%emt 0:05:24]} 19. b5 {[%emt 0:04:09]} Bxg3 {[%emt 0:00:55]} 20. fxg3 {[%emt 0:00:07]} Ne7 {[%emt 0:00:50]} 21. Bc1 {[%emt 0:00:41]} Qh5 {[%emt 0:02:51]} 22. Qa5 {[%emt 0:01:48]} Kb8 {[%emt 0:11:36]} 23. Bf4 {[%emt 0:00:37]} Nd5 {[%emt 0:00:40]} 24. b6 {[%emt 0:00:52]} axb6 {[%emt 0:01:11]} 25. cxb6 {[%emt 0:00:33]} e5 {[%emt 0:00:38]} 26. bxc7+ {[%emt 0:02:03]} Nxc7 {[%emt 0:00:15]} 27. dxe5 {[%emt 0:00:08]} Rc8 {[%emt 0:01:51]} 28. Rb1 {[%emt 0:00:46]} Ne6 {[%emt 0:02:42]} 29. Rxb7+ {[%emt 0:01:45]} Kxb7 {[%emt 0:00:09]} 30. Rb1+ {[%emt 0:00:04]} Kc6 {[%emt 0:00:07]} 31. Rc1+ {[%emt 0:00:11]} Kd7 {[%emt 0:01:02]} 32. Qd5+ {[%emt 0:00:08]} 1-0